[Event "17th Paracin Open 2024"]
[Site "Paracin"]
[Date "2024.07.09"]
[Round "6.16"]
[White "Akhmedov, David"]
[Black "Tilicheev, Viacheslav"]
[Result "1-0"]
[ECO "E62"]
[WhiteElo "2293"]
[BlackElo "2477"]
[Annotator "RC"]
[PlyCount "105"]
[EventDate "2024.07.02"]
[EventType "swiss"]
[EventCountry "SRB"]
[SourceTitle "playchess.com"]
[Source "ChessBase"]
[SourceQuality "1"]
[TimeControl "5400+30"]

1. c4 {[%emt 0:00:04]} g6 {[%emt 0:01:19]} 2. Nc3 {[%emt 0:00:09]} Bg7 {[%emt 0:00:08]} 3. d4 {[%emt 0:00:35]} d6 {[%emt 0:00:38]} 4. Nf3 {[%emt 0:00:13]} Nf6 {[%emt 0:00:13]} 5. g3 {[%emt 0:00:06]} O-O {[%emt 0:00:35]} 6. Bg2 {[%emt 0:00:03]} Bf5 {[%emt 0:00:17]} 7. Nh4 {[%emt 0:01:29]} Bc8 {[%emt 0:00:13]} 8. O-O {[%emt 0:00:12]} Nc6 {[%emt 0:00:39]} 9. Nf3 {[%emt 0:00:07]} e5 {[%emt 0:05:16]} 10. dxe5 {[%emt 0:03:29]} dxe5 {[%emt 0:01:46]} 11. Bg5 {[%emt 0:00:06]} h6 {[%emt 0:00:42]} 12. Qxd8 {[%emt 0:03:07]} Rxd8 {[%emt 0:00:08]} 13. Bxf6 {[%emt 0:00:06]} Bxf6 {[%emt 0:00:11]} 14. Nd5 {[%emt 0:00:07]} Kg7 {[%emt 0:10:20]} 15. Nxc7 {[%emt 0:03:15]} Rb8 {[%emt 0:00:08]} 16. Nd5 {[%emt 0:07:25]} e4 {[%emt 0:00:08]} 17. Nd2 {[%emt 0:01:47]} e3 {[%emt 0:00:47]} 18. Nxf6 {[%emt 0:10:10]} Rxd2 {[%emt 0:01:35]} 19. fxe3 {[%emt 0:00:06]} Rxb2 {[%emt 0:01:51]} 20. Ne8+ {[%emt 0:00:18]} Kf8 {[%emt 0:00:08]} 21. Nd6 {[%emt 0:00:08]} Be6 {[%emt 0:01:04]} 22. Rab1 {[%emt 0:03:04]} Rxb1 {[%emt 0:00:37]} 23. Rxb1 {[%emt 0:00:01]} Na5 {[%emt 0:00:55]} 24. c5 {[%emt 0:01:38]} Ke7 {[%emt 0:01:13]} 25. Nxb7 {[%emt 0:05:38]} Bxa2 {[%emt 0:08:01]} 26. Rb4 {[%emt 0:04:18]} Nxb7 {[%emt 0:08:05]} 27. c6 {[%emt 0:00:16]} Ke6 {[%emt 0:00:26]} 28. Rxb7 {[%emt 0:00:28]} Ra8 {[%emt 0:00:12]} 29. c7 {[%emt 0:01:36]} Rc8 {[%emt 0:01:29]} 30. Rxa7 {[%emt 0:00:06]} Bc4 {[%emt 0:01:35]} 31. Bb7 {[%emt 0:00:17]} Rxc7 {[%emt 0:00:05]} 32. Bd5+ {[%emt 0:00:03]} Bxd5 {[%emt 0:00:04]} 33. Rxc7 {[%emt 0:00:04]} h5 {[%emt 0:00:35]} 34. Kf2 {[%emt 0:00:13]} Kf5 {[%emt 0:01:05]} 35. Rc5 {[%emt 0:00:49]} Ke4 {[%emt 0:00:09]} 36. Ke1 {[%emt 0:00:17]} Be6 {[%emt 0:02:17]} 37. Kd2 {[%emt 0:00:10]} Bg4 {[%emt 0:00:13]} 38. Rb5 {[%emt 0:00:07]} Bf5 {[%emt 0:00:16]} 39. Rb7 {[%emt 0:00:20]} Be6 {[%emt 0:00:13]} 40. Rb4+ {[%emt 0:00:12]} Kf5 {[%emt 0:00:10]} 41. Kd3 {[%emt 0:00:15]} Ba2 {[%emt 0:00:07]} 42. Rf4+ {[%emt 0:00:30]} Ke5 {[%emt 0:00:07]} 43. e4 {[%emt 0:00:05]} Bb1+ {[%emt 0:00:07]} 44. Ke3 {[%emt 0:00:08]} f6 {[%emt 0:00:04]} 45. Rf1 {[%emt 0:00:21]} Bc2 {[%emt 0:00:23]} 46. Rc1 {[%emt 0:00:17]} Bxe4 {[%emt 0:00:07]} 47. Rc5+ {[%emt 0:01:08]} Bd5 {[%emt 0:00:45]} 48. Kd3 {[%emt 0:00:57]} Ke6 {[%emt 0:00:50]} 49. Kd4 {[%emt 0:00:07]} Ba2 {[%emt 0:00:09]} 50. e4 {[%emt 0:00:40]} Bb1 {[%emt 0:01:19]} 51. Rc1 {[%emt 0:00:13]} Ba2 {[%emt 0:00:06]} 52. Ra1 {[%emt 0:00:02]} Bb3 {[%emt 0:00:05]} 53. Kc3 {[%emt 0:00:02]} 1-0

[Event "17th Paracin Open 2024"]
[Site "Paracin"]
[Date "2024.07.09"]
[Round "6.17"]
[White "Ivanov, Mikhail M"]
[Black "Eren, Ataberk"]
[Result "1-0"]
[ECO "A09"]
[WhiteElo "2248"]
[BlackElo "2407"]
[Annotator "ChessBase"]
[PlyCount "73"]
[EventDate "2024.07.02"]
[EventType "swiss"]
[EventCountry "SRB"]
[SourceTitle "playchess.com"]
[Source "ChessBase"]
[SourceQuality "1"]
[TimeControl "5400+30"]

1. Nf3 {[%emt 0:00:03]} d5 {[%emt 0:01:31]} 2. c4 {[%emt 0:01:05]} d4 {[%emt 0:00:19]} 3. b4 {[%emt 0:01:20]} g5 {[%emt 0:05:34]} 4. Bb2 {[%emt 0:01:12]} Bg7 {[%emt 0:00:14]} 5. Nxg5 {[%emt 0:01:54]} e5 {[%emt 0:00:44]} 6. Ne4 {[%emt 0:09:57]} f5 {[%emt 0:00:17]} 7. Nc5 {[%emt 0:00:34]} a5 {[%emt 0:01:21]} 8. Qa4+ {[%emt 0:05:04]} c6 {[%emt 0:00:49]} 9. e3 {[%emt 0:09:12]} Ne7 {[%emt 0:03:15]} 10. exd4 {[%emt 0:05:44]} exd4 {[%emt 0:00:37]} 11. b5 {[%emt 0:14:33]} O-O {[%emt 0:00:42]} 12. Na3 {[%emt 0:00:08]} Qd6 {[%emt 0:04:46]} 13. Nd3 {[%emt 0:00:37]} Qe6+ {[%emt 0:01:12]} 14. Kd1 {[%emt 0:00:14]} Nd7 {[%emt 0:07:30]} 15. c5 {[%emt 0:07:37]} Rd8 {[%emt 0:05:38]} 16. Nf4 {[%emt 0:09:46]} Qh6 {[%emt 0:17:03]} 17. Qc4+ {[%emt 0:06:35]} Kh8 {[%emt 0:00:24]} 18. Ne6 {[%emt 0:01:02]} Qh5+ {[%emt 0:08:04]} 19. Qe2 {[%emt 0:06:17]} Qg6 {[%emt 0:10:05]} 20. Nxd8 {[%emt 0:03:17]} d3 {[%emt 0:02:21]} 21. Qxe7 {[%emt 0:07:07]} Bxb2 {[%emt 0:00:14]} 22. Nf7+ {[%emt 0:00:47]} Kg8 {[%emt 0:00:07]} 23. Bxd3 {[%emt 0:00:12]} Bxa3 {[%emt 0:00:49]} 24. Bxf5 {[%emt 0:01:12]} Qg7 {[%emt 0:00:34]} 25. Rb1 {[%emt 0:03:40]} Nf8 {[%emt 0:02:25]} 26. Bxc8 {[%emt 0:00:57]} Rxc8 {[%emt 0:00:08]} 27. Qe3 {[%emt 0:00:16]} Bb4 {[%emt 0:01:40]} 28. Nd6 {[%emt 0:01:10]} Rc7 {[%emt 0:01:03]} 29. a3 {[%emt 0:00:36]} Qxg2 {[%emt 0:01:39]} 30. Kc2 {[%emt 0:00:35]} Qg6+ {[%emt 0:00:35]} 31. d3 {[%emt 0:00:26]} Bxc5 {[%emt 0:00:22]} 32. Qxc5 {[%emt 0:00:25]} Ne6 {[%emt 0:00:03]} 33. Qe5 {[%emt 0:01:55]} cxb5+ {[%emt 0:00:16]} 34. Kb2 {[%emt 0:00:19]} Rc5 {[%emt 0:00:49]} 35. Qxc5 {[%emt 0:00:50]} Nxc5 {[%emt 0:00:15]} 36. Rhg1 {[%emt 0:00:28]} Nxd3+ {[%emt 0:00:04]} 37. Ka1 {[%emt 0:00:16]} 1-0

[Event "17th Paracin Open 2024"]
[Site "Paracin"]
[Date "2024.07.09"]
[Round "6.18"]
[White "Alok Sinha"]
[Black "Polschikov, Alexey"]
[Result "1/2-1/2"]
[ECO "B90"]
[WhiteElo "2245"]
[BlackElo "2376"]
[Annotator "ChessBase"]
[PlyCount "80"]
[EventDate "2024.07.02"]
[EventType "swiss"]
[EventCountry "SRB"]
[SourceTitle "playchess.com"]
[Source "ChessBase"]
[SourceQuality "1"]
[TimeControl "5400+30"]

1. e4 {[%emt 0:00:03]} c5 {[%emt 0:01:45]} 2. Nf3 {[%emt 0:00:08]} d6 {[%emt 0:00:13]} 3. d4 {[%emt 0:00:11]} cxd4 {[%emt 0:00:06]} 4. Nxd4 {[%emt 0:00:05]} Nf6 {[%emt 0:00:07]} 5. Nc3 {[%emt 0:00:04]} a6 {[%emt 0:00:07]} 6. h3 {[%emt 0:00:15]} g6 {[%emt 0:01:10]} 7. g4 {[%emt 0:03:24]} Bg7 {[%emt 0:00:11]} 8. Bg2 {[%emt 0:00:05]} Nfd7 {[%emt 0:00:25]} 9. Be3 {[%emt 0:07:28]} Nc6 {[%emt 0:00:14]} 10. Nxc6 {[%emt 0:09:05]} bxc6 {[%emt 0:00:07]} 11. Bd4 {[%emt 0:00:06]} Bxd4 {[%emt 0:08:48]} 12. Qxd4 {[%emt 0:00:30]} O-O {[%emt 0:01:50]} 13. O-O {[%emt 0:10:00]} Qb6 {[%emt 0:00:58]} 14. Qxb6 {[%emt 0:19:10]} Nxb6 {[%emt 0:00:01]} 15. f4 {[%emt 0:00:29]} a5 {[%emt 0:11:44]} 16. b3 {[%emt 0:06:45]} Ba6 {[%emt 0:06:33]} 17. Rfd1 {[%emt 0:02:16]} f6 {[%emt 0:02:31]} 18. Kf2 {[%emt 0:02:20]} Rfd8 {[%emt 0:06:36]} 19. Rd2 {[%emt 0:05:56]} Kf7 {[%emt 0:00:35]} 20. Rad1 {[%emt 0:00:38]} g5 {[%emt 0:01:14]} 21. fxg5 {[%emt 0:04:15]} fxg5 {[%emt 0:00:13]} 22. e5 {[%emt 0:00:10]} d5 {[%emt 0:01:59]} 23. Ne4 {[%emt 0:01:24]} Kg6 {[%emt 0:12:09]} 24. Nc5 {[%emt 0:02:38]} Rf8+ {[%emt 0:06:29]} 25. Ke3 {[%emt 0:01:59]} a4 {[%emt 0:07:16]} 26. Ne6 {[%emt 0:04:21]} Rg8 {[%emt 0:02:17]} 27. Rf2 {[%emt 0:03:05]} h6 {[%emt 0:09:12]} 28. c4 {[%emt 0:04:49]} axb3 {[%emt 0:01:14]} 29. axb3 {[%emt 0:00:20]} Bc8 {[%emt 0:03:10]} 30. Nf8+ {[%emt 0:08:03]} Kg7 {[%emt 0:00:09]} 31. Rdf1 {[%emt 0:00:05]} Kh8 {[%emt 0:00:52]} 32. Rf7 {[%emt 0:03:53]} Rg7 {[%emt 0:00:02]} 33. Rxe7 {[%emt 0:00:44]} Rxe7 {[%emt 0:01:01]} 34. Ng6+ {[%emt 0:00:05]} Kg7 {[%emt 0:00:15]} 35. Nxe7 {[%emt 0:00:04]} dxc4 {[%emt 0:04:22]} 36. bxc4 {[%emt 0:00:12]} Nxc4+ {[%emt 0:02:09]} 37. Kd4 {[%emt 0:00:09]} Be6 {[%emt 0:01:44]} 38. Rf6 {[%emt 0:02:31]} c5+ {[%emt 0:01:12]} 39. Kxc5 {[%emt 0:00:41]} Ra5+ {[%emt 0:00:08]} 40. Kd4 {[%emt 0:00:12]} Rxe5 {[%emt 0:01:02]} 1/2-1/2

[Event "17th Paracin Open 2024"]
[Site "Paracin"]
[Date "2024.07.09"]
[Round "6.19"]
[White "Pranav K P"]
[Black "Damljanovic, Branko"]
[Result "1/2-1/2"]
[ECO "A55"]
[WhiteElo "2223"]
[BlackElo "2364"]
[Annotator "ChessBase"]
[PlyCount "129"]
[EventDate "2024.07.02"]
[EventType "swiss"]
[EventCountry "SRB"]
[SourceTitle "playchess.com"]
[Source "ChessBase"]
[SourceQuality "1"]
[TimeControl "5400+30"]

1. d4 {[%emt 1:31:00]} Nf6 {[%emt 1:31:00]} 2. c4 {[%emt 0:00:30]} d6 {[%emt 0:00:30]} 3. Nc3 {[%emt 0:00:30]} Nbd7 {[%emt 0:00:30]} 4. e4 {[%emt 0:00:30]} e5 {[%emt 0:00:30]} 5. d5 {[%emt 0:00:30]} c6 {[%emt 0:00:30]} 6. Be3 {[%emt 0:00:30]} Be7 {[%emt 0:00:30]} 7. h3 {[%emt 0:00:30]} O-O {[%emt 0:00:30]} 8. Nf3 {[%emt 0:00:30]} a6 {[%emt 0:00:30]} 9. Be2 {[%emt 0:00:30]} cxd5 {[%emt 0:00:30]} 10. cxd5 {[%emt 0:00:30]} b5 {[%emt 0:00:30]} 11. Nd2 {[%emt 0:00:30]} Nb6 {[%emt 0:00:30]} 12. a3 {[%emt 0:00:30]} Bd7 {[%emt 0:00:30]} 13. O-O {[%emt 0:00:30]} Qb8 {[%emt 0:00:30]} 14. Rc1 {[%emt 0:00:30]} Rc8 {[%emt 0:00:30]} 15. Qb3 {[%emt 0:00:30]} Bd8 {[%emt 0:00:30]} 16. Rc2 {[%emt 0:00:30]} Ra7 {[%emt 0:00:30]} 17. Rfc1 {[%emt 0:00:30]} Rb7 {[%emt 0:00:30]} 18. Qa2 {[%emt 0:00:30]} h6 {[%emt 0:00:30]} 19. b4 {[%emt 0:00:30]} Rbc7 {[%emt 0:00:30]} 20. f4 {[%emt 0:00:30]} Be8 {[%emt 0:00:30]} 21. fxe5 {[%emt 0:00:30]} dxe5 {[%emt 0:00:30]} 22. Nb3 {[%emt 0:00:30]} Rxc3 {[%emt 0:00:30]} 23. Rxc3 {[%emt 0:00:30]} Rxc3 {[%emt 0:00:30]} 24. Rxc3 {[%emt 0:00:30]} Nxe4 {[%emt 0:00:30]} 25. Rd3 {[%emt 0:00:30]} Nc4 {[%emt 0:00:30]} 26. Nc5 {[%emt 0:00:30]} Bb6 {[%emt 0:00:30]} 27. Nxe4 {[%emt 0:00:30]} Nxe3 {[%emt 0:00:30]} 28. Nc5 {[%emt 0:00:30]} Nf5 {[%emt 0:00:30]} 29. d6 {[%emt 0:00:30]} Nxd6 {[%emt 0:00:30]} 30. Qd5 {[%emt 0:00:30]} Nf5 {[%emt 0:00:30]} 31. Bg4 {[%emt 0:00:30]} Nd4 {[%emt 0:00:30]} 32. Nxa6 {[%emt 0:00:30]} Bc6 {[%emt 0:00:30]} 33. Nxb8 {[%emt 0:00:30]} Bxd5 {[%emt 0:00:30]} 34. Nd7 {[%emt 0:00:30]} Bc4 {[%emt 0:00:30]} 35. Rd1 {[%emt 0:00:30]} Ba7 {[%emt 0:00:30]} 36. Nc5 {[%emt 0:00:30]} Kf8 {[%emt 0:00:30]} 37. Kf2 {[%emt 0:00:30]} Ke7 {[%emt 0:00:30]} 38. Ke3 {[%emt 0:00:30]} f5 {[%emt 0:00:30]} 39. Bf3 {[%emt 0:00:30]} Bb6 {[%emt 0:00:30]} 40. Rxd4 {[%emt 0:00:30]} exd4+ {[%emt 0:00:30]} 41. Kxd4 {[%emt 0:00:30]} Kd6 {[%emt 0:00:30]} 42. a4 {[%emt 0:00:30]} Ba7 {[%emt 0:00:30]} 43. h4 {[%emt 0:00:30]} g5 {[%emt 0:00:30]} 44. hxg5 hxg5 45. g4 {[%emt 0:01:00]} f4 {[%emt 0:01:00]} 46. a5 {[%emt 0:00:30]} Be6 {[%emt 0:00:30]} 47. a6 {[%emt 0:00:30]} Bc8 {[%emt 0:00:30]} 48. Kd3 {[%emt 0:00:30]} Ke5 {[%emt 0:00:30]} 49. Ne4 {[%emt 0:00:30]} Bxa6 {[%emt 0:00:30]} 50. Nxg5 {[%emt 0:00:30]} Bb8 {[%emt 0:00:30]} 51. Bc6 {[%emt 0:00:30]} Bc8 {[%emt 0:00:30]} 52. Bxb5 {[%emt 0:00:30]} Bxg4 {[%emt 0:00:30]} 53. Bc6 {[%emt 0:00:30]} Bh5 {[%emt 0:00:30]} 54. Nf3+ {[%emt 0:00:30]} Kd6 {[%emt 0:00:30]} 55. b5 {[%emt 0:00:30]} Ba7 {[%emt 0:00:30]} 56. Ke2 {[%emt 0:00:30]} Bg6 {[%emt 0:00:30]} 57. Nh4 {[%emt 0:00:30]} Bh5+ {[%emt 0:00:30]} 58. Bf3 {[%emt 0:00:30]} Bf7 {[%emt 0:00:30]} 59. Ng2 {[%emt 0:00:30]} Ke5 {[%emt 0:00:30]} 60. Nxf4 {[%emt 0:00:30]} Kxf4 {[%emt 0:00:30]} 61. Bc6 {[%emt 0:00:30]} Bc4+ {[%emt 0:00:30]} 62. Kd2 {[%emt 0:00:30]} Bd4 {[%emt 0:00:30]} 63. Be8 {[%emt 0:00:30]} Ke5 {[%emt 0:00:30]} 64. Bc6 {[%emt 0:00:30]} Bxb5 {[%emt 0:00:30]} 65. Bxb5 {[%emt 0:00:30]} 1/2-1/2

[Event "17th Paracin Open 2024"]
[Site "Paracin"]
[Date "2024.07.09"]
[Round "6.20"]
[White "Damjanovic, Vuk"]
[Black "Coman, Mihnea-George"]
[Result "1/2-1/2"]
[ECO "D00"]
[WhiteElo "2361"]
[BlackElo "2243"]
[Annotator "ChessBase"]
[PlyCount "80"]
[EventDate "2024.07.02"]
[EventType "swiss"]
[EventCountry "SRB"]
[SourceTitle "playchess.com"]
[Source "ChessBase"]
[SourceQuality "1"]
[TimeControl "5400+30"]

1. d4 {[%emt 1:31:00]} d5 {[%emt 1:31:00]} 2. Bf4 {[%emt 0:00:30]} c5 {[%emt 0:00:30]} 3. e3 {[%emt 0:00:30]} Nc6 {[%emt 0:00:30]} 4. c3 {[%emt 0:00:30]} Bf5 {[%emt 0:00:30]} 5. Nf3 {[%emt 0:00:30]} e6 {[%emt 0:00:30]} 6. Nbd2 {[%emt 0:00:30]} Qb6 {[%emt 0:00:30]} 7. Qc1 {[%emt 0:00:30]} Rc8 {[%emt 0:00:30]} 8. a4 {[%emt 0:00:30]} h6 {[%emt 0:00:30]} 9. Bb5 {[%emt 0:00:30]} a6 {[%emt 0:00:30]} 10. Bxc6+ {[%emt 0:00:30]} bxc6 {[%emt 0:00:30]} 11. dxc5 {[%emt 0:00:30]} Bxc5 {[%emt 0:00:30]} 12. b4 {[%emt 0:00:30]} Be7 {[%emt 0:00:30]} 13. a5 {[%emt 0:00:30]} Qb7 {[%emt 0:00:30]} 14. Nb3 {[%emt 0:00:30]} Nf6 {[%emt 0:00:30]} 15. O-O {[%emt 0:00:30]} O-O {[%emt 0:00:30]} 16. Nfd4 {[%emt 0:00:30]} Bh7 {[%emt 0:00:30]} 17. Nc5 {[%emt 0:00:30]} Bxc5 {[%emt 0:00:30]} 18. bxc5 Ne4 {[%emt 0:00:30]} 19. Rb1 {[%emt 0:01:00]} Qe7 {[%emt 0:00:30]} 20. Rb6 {[%emt 0:00:30]} e5 {[%emt 0:00:30]} 21. Nxc6 {[%emt 0:00:30]} Qxc5 {[%emt 0:00:30]} 22. Nxe5 {[%emt 0:00:30]} Qxa5 {[%emt 0:00:30]} 23. Qb2 {[%emt 0:00:30]} Qxc3 {[%emt 0:00:30]} 24. f3 {[%emt 0:00:30]} Qxb2 {[%emt 0:00:30]} 25. Rxb2 {[%emt 0:00:30]} Nc5 {[%emt 0:00:30]} 26. Rb6 {[%emt 0:00:30]} Ra8 {[%emt 0:00:30]} 27. Nc6 {[%emt 0:00:30]} Rfe8 {[%emt 0:00:30]} 28. Nb4 {[%emt 0:00:30]} Bd3 {[%emt 0:00:30]} 29. Rd1 {[%emt 0:00:30]} Bc4 {[%emt 0:00:30]} 30. Nxd5 {[%emt 0:00:30]} Ne6 {[%emt 0:00:30]} 31. Bd6 {[%emt 0:00:30]} a5 {[%emt 0:00:30]} 32. Nc3 {[%emt 0:00:30]} a4 {[%emt 0:00:30]} 33. Ba3 Bb3 {[%emt 0:00:30]} 34. Rdd6 {[%emt 0:01:00]} Rec8 {[%emt 0:00:30]} 35. Rbc6 {[%emt 0:00:30]} Rxc6 {[%emt 0:00:30]} 36. Rxc6 {[%emt 0:00:30]} Rd8 {[%emt 0:00:30]} 37. Bc1 {[%emt 0:00:30]} Ra8 {[%emt 0:00:30]} 38. Ba3 {[%emt 0:00:30]} Rd8 {[%emt 0:00:30]} 39. Bd6 {[%emt 0:00:30]} Ra8 {[%emt 0:00:30]} 40. Ba3 {[%emt 0:00:30]} Rd8 1/2-1/2